Cogmind - Beta 11 @@@ ROGUE MODE // 2022.03.20 @ 15:22:20 Player: Stryker Result: Self-destructed Performance ------------- Evolutions (4) 2000 Regions Visited (11) 2200 Robots Destroyed (60) 300 Value Destroyed (1909) 1909 Prototype IDs (42) 840 Alien Tech Used (0) 0 Bonus (671) 671 TOTAL SCORE: 7920 Bonus ------- Follower Combat Kills 71 Aligned with FarCom 300 Met Data Miner 300 Cogmind --------- Core Integrity 782/850 Matter 122/300 Energy 84/310 System Corruption 0% Temperature Hot (210) Movement Treading (240) Ox1 Location -6/Factory Parts ------- > --- POWER (1) -------- Fission Core > --- PROPULSION (5) --- Improved Treads Medium Treads > --- UTILITY (6) ------ Advanced Heat Sink High-capacity Storage Unit Advanced Terrain Scan Processor > --- WEAPON (3) ------- Improved Spread Laser Cooled Plasma Cannon Hypervelocity Gauss Rifle > --- INVENTORY (20) --- Micro Nuclear Core Wheel High-capacity Storage Unit Huge Storage Unit Compact Matter Pod (150) Improved Sensor Array Improved Terrain Scanner Improved Terrain Scan Processor Seismic Detector Medium Reactive Plating Makeshift Hacking Suite System Shield Heavy Laser Ion Cannon Ion Cannon Ion Cannon Cooled Plasma Cannon Grenade Launcher Peak State ------------ > --- POWER ------------ Fission Core > --- PROPULSION ------- Improved Treads Improved Treads Improved Treads Medium Treads Medium Treads > --- UTILITY ---------- Advanced Heat Sink High-capacity Storage Unit Improved Terrain Scanner Advanced Terrain Scan Processor Hardened Medium Armor Plating Force Field > --- WEAPON ----------- Improved Spread Laser Cooled Plasma Cannon Hypervelocity Gauss Rifle > --- INVENTORY -------- Micro Nuclear Core Wheel High-capacity Storage Unit Huge Storage Unit Advanced Energy Well Compact Matter Pod Improved Sensor Array Improved Terrain Scan Processor Seismic Detector Hardened Light Armor Plating Medium Reactive Plating Experimental Thermal Shield Makeshift Hacking Suite System Shield Heavy Laser Ion Cannon Ion Cannon Ion Cannon Cooled Plasma Cannon Grenade Launcher [Rating: 62] Favorites ----------- Power Light Nuclear Core Engine Light Ion Engine Power Core Light Nuclear Core Propulsion Improved Treads Treads Improved Treads Leg Aluminum Leg Wheel Compact Wheel Utility High-capacity Storage Unit Device Improved Sensor Array Storage High-capacity Storage Unit Processor Advanced Terrain Scan Processor Protection Hardened Medium Armor Plating Weapon Assault Rifle Energy Gun Improved Spread Laser Energy Cannon Particle Cannon Ballistic Gun Assault Rifle Launcher Grenade Launcher Build | -11 -10 -10 -10 -9 -8 -7 -7 -7 -7 -6 -6 ------- Run | Scr Mat Min Exi Min Mat Fac Low Low Dat Pro Fac Slots Evolved 8 | . . . . . 4 2 . . . . 2 Power . | . . . . . . . . . . . . Propulsion 3 | . . . . . 1 1 . . . . 1 Utility 4 | . . . . . 2 1 . . . . 1 Weapon 1 | . . . . . 1 . . . . . . Parts Attached 116 | 1 19 7 2 4 21 5 21 3 3 19 11 Power 8 | . 3 . . 1 2 . 1 . . . 1 Engine 5 | . 3 . . 1 1 . . . . . . Core 3 | . . . . . 1 . 1 . . . 1 Reactor . | . . . . . . . . . . . . Propulsion 17 | . 4 2 . 3 3 1 . . . 1 3 Treads 14 | . 3 1 . 2 3 1 . . . 1 3 Leg . | . . . . . . . . . . . . Wheel 3 | . 1 1 . 1 . . . . . . . Hover . | . . . . . . . . . . . . Flight . | . . . . . . . . . . . . Utility 74 | 1 9 3 2 . 9 3 18 3 3 18 5 Device 47 | 1 4 2 2 . 4 1 10 3 1 15 4 Storage 6 | . 3 . . . 1 . 1 . . 1 . Processor 2 | . . . . . . 1 1 . . . . Hackware . | . . . . . . . . . . . . Protection 19 | . 2 1 . . 4 1 6 . 2 2 1 Artifact . | . . . . . . . . . . . . Weapon 17 | . 3 2 . . 7 1 2 . . . 2 Energy Gun 2 | . . . . . 1 1 . . . . . Energy Cannon 3 | . 1 1 . . . . . . . . 1 Ballistic Gun 9 | . 2 1 . . 4 . 1 . . . 1 Ballistic Cannon . | . . . . . . . . . . . . Launcher 3 | . . . . . 2 . 1 . . . . Special Weapon . | . . . . . . . . . . . . Impact Weapon . | . . . . . . . . . . . . Slashing Weapon . | . . . . . . . . . . . . Piercing Weapon . | . . . . . . . . . . . . Special Melee Weapon . | . . . . . . . . . . . . Unidentified Prototypes 4 | . . . . . . 1 . . . 2 1 Parts Lost 16 | . . 2 . 3 4 . 1 . . 1 5 Power 2 | . . . . 1 . . 1 . . . . Propulsion 7 | . . 1 . 2 2 . . . . 1 1 Utility 6 | . . 1 . . 1 . . . . . 4 Weapon 1 | . . . . . 1 . . . . . . Highest Loss Streak 5 | . . 1 . 3 3 . 1 . . 1 5 To Critical Strikes . | . . . . . . . . . . . . Average Slot Usage (%) 98 | . 99 100 100 99 91 98 99 100 100 99 94 Engine 6 | . 14 14 14 13 6 . . . . . . Core 3 | . . . . . 2 7 6 7 7 7 6 Treads 20 | . 6 14 14 14 16 28 30 30 30 29 30 Leg 1 | . 8 . . . . . . . . . . Wheel 6 | . 13 13 14 13 8 . . . . . . Device 13 | . 11 13 14 14 12 14 9 19 21 15 15 Storage 10 | . 14 14 14 14 9 14 7 7 7 7 6 Processor 3 | . . . . . . . 15 10 7 7 6 Protection 3 | . 1 . . . 8 7 5 . 1 6 7 Energy Gun 3 | . . . . . 4 7 7 7 7 7 6 Energy Cannon 5 | . 2 12 14 14 7 . . . . . 2 Ballistic Gun 16 | . 25 15 14 14 14 15 14 15 15 15 10 Naked Turns . | . . . . . . . . . . . . Heaviest Build 89 | 12 52 50 50 50 70 67 66 66 67 67 89 Greatest Support 125 | 20 20 43 16 16 69 92 92 92 92 97 125 Greatest Overweight (x) 5 | . 5 4 3 3 4 . . . . . . Average Overweight (x) 1 | . 3 3 3 2 2 . . . . . . Largest Inventory Capacity 20 | 8 20 20 20 20 20 20 20 20 20 20 20 Average Capacity 19 | 8 19 20 20 20 20 20 20 20 20 20 20 Most Carried 20 | 8 20 20 20 20 20 20 20 20 20 20 20 Average Carried 19 | 6 17 19 19 19 18 19 19 19 20 19 19 Final Capacity 20 | 8 20 20 20 20 20 20 20 20 20 20 20 Final Carried 20 | 8 20 19 20 20 18 20 20 20 20 20 18 Class Distribution -------------------- 43% | Mutant 36% | Skirmisher 14% | Tank 5% | Scavenger-Skirmisher Dominant Class ---------------- Mutant | -10/Materials Mutant | -10/Mines Mutant | -10/Exiles Mutant | -9/Mines Skirmisher | -8/Materials Skirmisher | -7/Factory Skirmisher | -7/Lower Caves Skirmisher | -7/Lower Caves Skirmisher | -7/Data Miner Tank | -6/Proximity Caves Scavenger-Skirmisher | -6/Factory Resources | -11 -10 -10 -10 -9 -8 -7 -7 -7 -7 -6 -6 ----------- Run | Scr Mat Min Exi Min Mat Fac Low Low Dat Pro Fac Matter Collected 1989 | 226 403 158 . 66 401 . 350 50 . 335 . Remotely . | . . . . . . . . . . . . Salvage Created 2104 | 102 368 243 . 68 545 . 210 . . 339 229 Parts 130 | 7 36 20 . 1 33 . 13 . . 11 9 Haulers Intercepted 1 | . 1 . . . . . . . . . . Recyclers Shooed 1 | . . . . . 1 . . . . . . Parts Field Recycled . | . . . . . . . . . . . . Retrieved Matter . | . . . . . . . . . . . . Parts Self-Destructed 23 | . . . . . . . 13 . . 10 . Prevented . | . . . . . . . . . . . . Kills | -11 -10 -10 -10 -9 -8 -7 -7 -7 -7 -6 -6 ------- Run | Scr Mat Min Exi Min Mat Fac Low Low Dat Pro Fac Combat Hostiles Destroyed 45 | . 7 6 . 1 14 . 6 . . 7 4 Guns 27 | . 4 4 . . 6 . 4 . . 7 2 Cannons 10 | . 3 . . 1 4 . . . . . 2 AOE 8 | . . 2 . . 4 . 2 . . . . Classes Destroyed 12 | 2 7 . . . 2 . 1 . . . . Worker 2 | . 1 . . . 1 . . . . . . Builder 2 | . 1 . . . 1 . . . . . . Tunneler 1 | 1 . . . . . . . . . . . Hauler 1 | . 1 . . . . . . . . . . Recycler 2 | 1 . 1 . . . . . . . . . Operator 3 | . 2 . . . 1 . . . . . . Watcher 4 | . 3 . . . 1 . . . . . . Swarmer 13 | . 3 2 . . 4 . 4 . . . . Grunt 27 | . 4 4 . . 8 . 1 . . 7 3 Duelist 1 | . . . . . 1 . . . . . . Hunter 1 | . . . . . 1 . . . . . . Programmer 2 | . . . . . . . 1 . . . 1 Packrat 1 | . . . . . . . 1 . . . . Best Kill Streak 5 | 2 5 2 . 1 5 . 4 . . 3 3 Combat Bots Only 4 | . 3 2 . 1 4 . 4 . . 3 3 Max Kills in Single Turn 4 | 1 2 2 . 1 4 . 1 . . 1 1 Gunslinging . | . . . . . . . . . . . . Exploded 3 | . . 2 . . 3 . 1 . . . . Melee . | . . . . . . . . . . . . Uniques/NPCs Destroyed 1 | . . . . 1 . . . . . . . YI-UF0 (-9/Mines) Combat | -11 -10 -10 -10 -9 -8 -7 -7 -7 -7 -6 -6 -------- Run | Scr Mat Min Exi Min Mat Fac Low Low Dat Pro Fac Damage Taken 3299 | . 284 307 . 257 790 75 299 . . 634 653 Core 438 | . 84 61 . 86 65 . 31 . . 43 68 Absorbed by Shields 131 | . . . . . . . . . . . 131 Redirected to Shielding 50 | . 16 34 . . . . . . . . . Regen/Repaired (Parts) 290 | . . . . . . . . . . . 290 Core Remaining (%) 71 | 100 . . . 7 88 . . . . 89 . Volleys Fired 150 | 4 34 18 . 4 41 . 12 . . 22 15 Largest 3 | 2 2 2 . 2 3 . 3 . . 3 3 Hottest 153 | 40 88 88 . 88 153 . 115 . . 115 143 Shots Fired 362 | 8 64 33 . 8 109 . 32 . . 64 44 Gun 295 | 8 53 26 . 4 82 . 29 . . 64 29 Cannon 60 | . 11 7 . 4 23 . . . . . 15 Launcher 7 | . . . . . 4 . 3 . . . . Special . | . . . . . . . . . . . . Kinetic 227 | 8 53 26 . 4 57 . 20 . . 44 15 Thermal 128 | . 11 7 . 4 48 . 9 . . 20 29 Explosive 7 | . . . . . 4 . 3 . . . . Electromagnetic . | . . . . . . . . . . . . Robot Hit Streak 13 | 5 9 7 . 3 11 . 13 . . 9 8 Robot Miss Streak 6 | 1 5 3 . 2 3 . 6 . . 4 3 Penetration Max . | . . . . . . . . . . . . Secondary Targets 6 | . . 1 . . 2 . 1 . . 2 . Max Gunslinging Chain 1 | . . 1 . . 1 . 1 . . 1 . Shots Hit Robots 237 | 6 40 18 . 4 70 . 17 . . 49 33 Core Hits 163 | 3 24 11 . 3 33 . 19 . . 45 25 Critical Kills 1 | . . . . . 1 . . . . . . Critical Parts Destroyed 3 | . 1 . . . . . . . . . 2 Critical Strikes 4 | . 1 . . . 1 . . . . . 2 Destroy 4 | . 1 . . . 1 . . . . . 2 Melee Attacks . | . . . . . . . . . . . . Impact . | . . . . . . . . . . . . Slashing . | . . . . . . . . . . . . Piercing . | . . . . . . . . . . . . Sneak Attacks . | . . . . . . . . . . . . Combat Hostiles . | . . . . . . . . . . . . Follow-up Attacks . | . . . . . . . . . . . . Damage Inflicted 4745 | 65 678 363 . 67 1459 . 490 . . 863 760 Guns 2928 | 65 414 181 . 25 707 . 297 . . 863 376 Cannons 997 | . 177 43 . 42 351 . . . . . 384 Explosions 820 | . 87 139 . . 401 . 193 . . . . Melee . | . . . . . . . . . . . . Ramming . | . . . . . . . . . . . . Kinetic 1697 | 65 414 181 . 25 473 . 86 . . 378 75 Thermal 2367 | . 177 182 . 42 585 . 211 . . 485 685 Explosive 681 | . 87 . . . 401 . 193 . . . . Electromagnetic . | . . . . . . . . . . . . Impact . | . . . . . . . . . . . . Slashing . | . . . . . . . . . . . . Piercing . | . . . . . . . . . . . . Highest Corruption 1 | . . . . . . . 1 1 1 1 . Average Corruption 1 | . . . . . . . 1 1 1 1 . Corruption Purged . | . . . . . . . . . . . . Corruption Blocked . | . . . . . . . . . . . . Effects 15 | . . . . . . . 8 2 1 4 . Message Errors 3 | . . . . . . . 3 . . . . Matter Fused 4 | . . . . . . . 2 1 . 1 . Heat Flow Errors 1 | . . . . . . . . . . 1 . Energy Discharges 1 | . . . . . . . . 1 . . . Data Loss (minor) 2 | . . . . . . . 1 . . 1 . Data Loss (major) 2 | . . . . . . . . . 1 1 . Misfires 2 | . . . . . . . 2 . . . . Overload Shots . | . . . . . . . . . . . . Overflow Damage 34 | . . 3 . . 19 . 4 . . . 8 Projectiles 12 | . . 3 . . 1 . . . . . 8 Explosions 22 | . . . . . 18 . 4 . . . . Melee . | . . . . . . . . . . . . Knockbacks . | . . . . . . . . . . . . Impact . | . . . . . . . . . . . . Kinetic . | . . . . . . . . . . . . Secondary . | . . . . . . . . . . . . Self-Inflicted Damage 25 | . . . . . . . 25 . . . . Shots 1 | . . . . . . . 1 . . . . Rammed . | . . . . . . . . . . . . Targets Rammed . | . . . . . . . . . . . . Kicked . | . . . . . . . . . . . . Crushed . | . . . . . . . . . . . . Highest Temperature 320 | . 279 90 . . 320 . 144 . . 222 258 Average Temperature 82 | . 138 21 . . 77 . 50 . . 76 93 Received Heat Transfer 1226 | . 138 135 . . 414 . 18 . . 345 176 Effects 2 | . 2 . . . . . . . . . . Interference 2 | . 2 . . . . . . . . . . Siege Activations . | . . . . . . . . . . . . Robots Corrupted . | . . . . . . . . . . . . Combat Hostiles . | . . . . . . . . . . . . Parts Fried . | . . . . . . . . . . . . Impact Corruptions . | . . . . . . . . . . . . Robots Melted . | . . . . . . . . . . . . Combat Hostiles . | . . . . . . . . . . . . Parts Melted 6 | . 1 . . . 2 . 2 . . . 1 Heat Transferred 3128 | . 296 224 . 74 1184 . 160 . . 395 795 Parts Sabotaged . | . . . . . . . . . . . . Parts Stolen . | . . . . . . . . . . . . Parts Stripped . | . . . . . . . . . . . . Power Chain Reactions . | . . . . . . . . . . . . Missiles Intercepted . | . . . . . . . . . . . . Alert | -11 -10 -10 -10 -9 -8 -7 -7 -7 -7 -6 -6 ------- Run | Scr Mat Min Exi Min Mat Fac Low Low Dat Pro Fac Peak Influence 306 | 10 258 295 . 15 306 30 . . . . 94 Initial 59 | . 6 50 . . . 30 . . . . 59 Average 91 | 5 86 190 . . 104 30 . . . . 49 Maximum Alert Level 1 | . 1 1 . . 1 . . . . . . Low Security (%) 85 | 100 88 49 . 100 92 100 . . . . 100 Level 1 14 | . 11 50 . . 7 . . . . . . Level 2 . | . . . . . . . . . . . . Level 3 . | . . . . . . . . . . . . Level 4 . | . . . . . . . . . . . . Level 5 . | . . . . . . . . . . . . High Security . | . . . . . . . . . . . . Max Security . | . . . . . . . . . . . . Squads Dispatched 5 | . . . . . 3 1 . . . . 1 Investigation 2 | . . . . . 1 1 . . . . . Extermination 1 | . . . . . . . . . . . 1 Reinforcement 2 | . . . . . 2 . . . . . . Assault . | . . . . . . . . . . . . Garrison . | . . . . . . . . . . . . Intercept . | . . . . . . . . . . . . Searches Triggered . | . . . . . . . . . . . . Construction Impeded . | . . . . . . . . . . . . Haulers Reinforced . | . . . . . . . . . . . . Active Scanning Responses . | . . . . . . . . . . . . Cargo Convoy Interrupts . | . . . . . . . . . . . . Stealth | -11 -10 -10 -10 -9 -8 -7 -7 -7 -7 -6 -6 --------- Run | Scr Mat Min Exi Min Mat Fac Low Low Dat Pro Fac Distress Signals 6 | . 2 . . . 3 1 . . . . . Communications Jammed . | . . . . . . . . . . . . Distress Signals . | . . . . . . . . . . . . Times Spotted 73 | . 16 10 . 1 21 1 6 . . 8 10 Peak Tracking Total 6 | . 3 3 . 1 5 1 4 . . 4 6 Tactical Retreats 2 | . . . . . 1 . . . . 1 . Traps | -11 -10 -10 -10 -9 -8 -7 -7 -7 -7 -6 -6 ------- Run | Scr Mat Min Exi Min Mat Fac Low Low Dat Pro Fac Traps Triggered 1 | . . . . . . 1 . . . . . Indirectly . | . . . . . . . . . . . . Trap Hack Attempts . | . . . . . . . . . . . . Triggered . | . . . . . . . . . . . . Disarmed . | . . . . . . . . . . . . Reprogrammed . | . . . . . . . . . . . . Reused . | . . . . . . . . . . . . Traps Extracted . | . . . . . . . . . . . . Installed . | . . . . . . . . . . . . Triggered 3 | . . . . . . . 3 . . . . Machines | -11 -10 -10 -10 -9 -8 -7 -7 -7 -7 -6 -6 ---------- Run | Scr Mat Min Exi Min Mat Fac Low Low Dat Pro Fac Machines Disabled 7 | . 2 4 . . 1 . . . . . . Max in Single Turn 4 | . 1 4 . . 1 . . . . . . Garrison Access 1 | . . . . . 1 . . . . . . Machines Sabotaged . | . . . . . . . . . . . . Garrisons Compromised . | . . . . . . . . . . . . Overloaded Fab Kills . | . . . . . . . . . . . . Hacking | -11 -10 -10 -10 -9 -8 -7 -7 -7 -7 -6 -6 --------- Run | Scr Mat Min Exi Min Mat Fac Low Low Dat Pro Fac Machines Accessed 23 | . 9 . 3 . 4 2 . . 4 . 1 Terminals 13 | . 8 . . . 3 2 . . . . . Fabricators . | . . . . . . . . . . . . Repair Stations 1 | . . . . . . . . . . . 1 Recycling Units 1 | . 1 . . . . . . . . . . Scanalyzers . | . . . . . . . . . . . . Garrison Access 1 | . . . . . 1 . . . . . . Total Hacks 89 | . 30 . 7 . 13 4 . . 29 . 6 Successful 59 | . 13 . 7 . 6 . . . 29 . 4 Failed 29 | . 16 . . . 7 4 . . . . 2 Catastrophic 6 | . 1 . . . 3 2 . . . . . Database Lockouts 1 | . 1 . . . . . . . . . . Manual 33 | . 20 . 1 . 8 4 . . . . . Terminals 43 | . 28 . . . 11 4 . . . . . Fabricators . | . . . . . . . . . . . . Repair Stations 6 | . . . . . . . . . . . 6 Recycling Units 2 | . 2 . . . . . . . . . . Scanalyzers . | . . . . . . . . . . . . Garrison Access 2 | . . . . . 2 . . . . . . Terminal Hacks 49 | . 10 . 7 . 3 . . . 29 . . Record 17 | . . . 6 . . . . . 11 . . Part Schematic 11 | . 1 . . . . . . . 10 . . Robot Schematic 5 | . . . . . . . . . 5 . . Robot Analysis 4 | . 4 . . . . . . . . . . Prototype ID Bank 5 | . 2 . . . . . . . 3 . . Branch Access Points 1 | . 1 . . . . . . . . . . Alert Level 1 | . . . . . 1 . . . . . . Unreport Threat 1 | . . . . . 1 . . . . . . Locate Traps 2 | . 2 . . . . . . . . . . Zone Layout 1 | . . . . . 1 . . . . . . EX-Prototype ID Bank 1 | . . . 1 . . . . . . . . Fabricator Hacks . | . . . . . . . . . . . . Repair Station Hacks 4 | . . . . . . . . . . . 4 Scan Component 2 | . . . . . . . . . . . 2 Repair 2 | . . . . . . . . . . . 2 Recycling Unit Hacks . | . . . . . . . . . . . . Scanalyzer . | . . . . . . . . . . . . Garrison Access Hacks 1 | . . . . . 1 . . . . . . Seal Access 1 | . . . . . 1 . . . . . . Unauthorized Hacks 5 | . 3 . . . 2 . . . . . . Terminals 4 | . 2 . . . 2 . . . . . . Track 1 | . 1 . . . . . . . . . . Botnet 3 | . 1 . . . 2 . . . . . . Fabricators . | . . . . . . . . . . . . Repair Stations . | . . . . . . . . . . . . Recycling Units 1 | . 1 . . . . . . . . . . Reject 1 | . 1 . . . . . . . . . . Scanalyzers . | . . . . . . . . . . . . Garrison Access . | . . . . . . . . . . . . Data Cores Recovered 2 | . 2 . . . . . . . . . . Used 2 | . 2 . . . . . . . . . . Hacking Detections 16 | . 9 . . . 4 2 . . . . 1 Full Trace Events 2 | . . . . . 1 1 . . . . . Feedback Events . | . . . . . . . . . . . . Feedback Blocked . | . . . . . . . . . . . . Robot Schematics Acquired 5 | . . . . . . . . . 5 . . Robots Built . | . . . . . . . . . . . . Authchips . | . . . . . . . . . . . . Time . | . . . . . . . . . . . . Total Robot Build Rating . | . . . . . . . . . . . . Part Schematics Acquired 11 | . 1 . . . . . . . 10 . . Parts Built . | . . . . . . . . . . . . Authchips . | . . . . . . . . . . . . Time . | . . . . . . . . . . . . Total Part Build Rating . | . . . . . . . . . . . . Parts Repaired 2 | . . . . . . . . . . . 2 Time 76 | . . . . . . . . . . . 76 Parts Recycled . | . . . . . . . . . . . . Recycled Matter . | . . . . . . . . . . . . Retrieved Matter . | . . . . . . . . . . . . Retrieved Components . | . . . . . . . . . . . . Parts Scanalyzed . | . . . . . . . . . . . . Part Schematics Acquired . | . . . . . . . . . . . . Parts Damaged . | . . . . . . . . . . . . Bothacking | -11 -10 -10 -10 -9 -8 -7 -7 -7 -7 -6 -6 ------------ Run | Scr Mat Min Exi Min Mat Fac Low Low Dat Pro Fac Used RIF Installer . | . . . . . . . . . . . . Robots Hacked . | . . . . . . . . . . . . Non-combat . | . . . . . . . . . . . . Combat . | . . . . . . . . . . . . Robot Hacks Applied . | . . . . . . . . . . . . Relay Couplers Released . | . . . . . . . . . . . . Fabnet Peak Effective % . | . . . . . . . . . . . . Robots Rewired . | . . . . . . . . . . . . Allies Hacked . | . . . . . . . . . . . . Hacks Repelled . | . . . . . . . . . . . . Allies | -11 -10 -10 -10 -9 -8 -7 -7 -7 -7 -6 -6 -------- Run | Scr Mat Min Exi Min Mat Fac Low Low Dat Pro Fac Total Allies 7 | . . 6 . . . . . . . 1 . Largest Group 6 | . . 6 5 3 . . . . . 1 . Highest-Rated Group 117 | . . 117 102 40 . . . . . 96 . Highest-Rated Ally 96 | . . 31 31 16 . . . . . 96 . Total Orders 11 | . . . 3 . . 1 2 2 . 2 1 ROAM 1 | . . . 1 . . . . . . . . EXPLORE 7 | . . . 1 . . 1 1 1 . 2 1 RETURN 3 | . . . 1 . . . 1 1 . . . Ally Attacks 18 | . . 7 . 3 . . . . . 8 . Total Damage 418 | . . 83 . 16 . . . . . 319 . Kills 4 | . . 3 . . . . . . . 1 . Allies Corrupted . | . . . . . . . . . . . . Allies Melted . | . . . . . . . . . . . . Intel | -11 -10 -10 -10 -9 -8 -7 -7 -7 -7 -6 -6 ------- Run | Scr Mat Min Exi Min Mat Fac Low Low Dat Pro Fac Robot Analysis Total 4 | . 4 . . . . . . . . . . Derelict Logs Recovered 6 | . . 3 . 1 . . 1 . . 1 . Drone Launches 7 | . . . 1 . . 1 1 1 . 2 1 Drone Recoveries 6 | . . . 1 . . 1 1 1 . 2 . Exploration | -11 -10 -10 -10 -9 -8 -7 -7 -7 -7 -6 -6 ------------- Run | Scr Mat Min Exi Min Mat Fac Low Low Dat Pro Fac Turns Passed 6574 | 35 979 789 486 476 947 317 821 373 136 761 454 Spaces Moved 3531 | 16 568 464 321 314 385 187 373 204 83 394 222 Core . | . . . . . . . . . . . . Treads 1523 | . . 5 . . 55 187 373 204 83 394 222 Legs 26 | 16 10 . . . . . . . . . . Wheels 1982 | . 558 459 321 314 330 . . . . . . Hover . | . . . . . . . . . . . . Flight . | . . . . . . . . . . . . Fastest Speed 95 | 120 95 140 145 130 145 160 160 160 160 160 160 Average Speed 150 | 120 137 141 145 144 153 160 160 160 160 160 160 Slowest Speed 240 | 120 155 240 145 145 160 160 160 160 160 160 160 Overloaded Moves . | . . . . . . . . . . . . Propulsion Burnouts . | . . . . . . . . . . . . Robots Hopped . | . . . . . . . . . . . . Cave-ins Triggered . | . . . . . . . . . . . . Exploration Rate (%) 57 | 2 87 90 92 65 34 15 77 63 70 75 15 Regions Visited 11 Branch Regions 7 Pre-discovered Areas 7 | . . 3 1 . . . 1 . 1 1 . Known Exits Taken 4 | . 1 . . . 1 1 1 . . . . Unknown Exits Taken 7 | 1 . 1 1 1 . . . 1 1 1 . Scrap Searched 10 | . . 2 . 1 . . 3 2 . 2 . Spaces Dug 9 | . . . . . 9 . . . . . . Terrain Destroyed 86 | . 9 28 . . 36 . 11 . . . 2 Melee . | . . . . . . . . . . . . Projectile 4 | . . . . . 2 . . . . . 2 AOE 82 | . 9 28 . . 34 . 11 . . . . Terrain Rammed . | . . . . . . . . . . . . Walls Destroyed . | . . . . . . . . . . . . Machines Disabled . | . . . . . . . . . . . . Actions | -11 -10 -10 -10 -9 -8 -7 -7 -7 -7 -6 -6 --------- Run | Scr Mat Min Exi Min Mat Fac Low Low Dat Pro Fac Total 4486 | 24 708 563 341 329 658 207 565 250 85 469 287 Wait 598 | 2 48 73 18 2 194 7 155 42 . 28 29 Move 3520 | 15 567 463 320 313 384 186 372 203 82 393 222 Hop . | . . . . . . . . . . . . Pick Up 53 | 2 21 1 . 4 9 6 3 1 . 3 3 Fast Attach 13 | 1 2 . 1 1 2 1 . . . 1 4 Attach 25 | . 2 2 . 2 11 2 1 1 . 1 3 Detach 7 | . 1 . 1 . 3 . . 1 . . 1 Swap 78 | . 15 5 1 1 8 2 20 2 3 17 4 Drop 42 | . 18 1 . 2 6 3 2 . . 4 6 Fire 150 | 4 34 18 . 4 41 . 12 . . 22 15 Melee . | . . . . . . . . . . . . Ram . | . . . . . . . . . . . . Kick . | . . . . . . . . . . . . Crush . | . . . . . . . . . . . . Escape Stasis . | . . . . . . . . . . . . Rewire . | . . . . . . . . . . . . Trap . | . . . . . . . . . . . . Miscellaneous . | . . . . . . . . . . . . Route ------- -11/Scrapyard -10/Materials (discovered 4 exits: [*Mat x3] / *Min) -10/Mines (discovered 3 exits: [*Mat x2] / *Exi) -10/Exiles (discovered 2 exits: [*Min x2]) -9/Mines -8/Materials -7/Factory -7/Lower Caves -7/Lower Caves -7/Data Miner -6/Proximity Caves -6/Factory History --------- Turn | Location | Event 1 | -11/Scrapyard | Discovered new exit (range 3) 36 | -11/Scrapyard | Entered Materials 124 | -10/Materials | Identified exit to Mines 279 | -10/Materials | Discovered new exit (range 3) 311 | -10/Materials | Build established: Mutant 527 | -10/Materials | Discovered new exit (range 11) 856 | -10/Materials | Discovered new exit (range 16) 887 | -10/Materials | Central database locked down 1015 | -10/Materials | Entered Mines 1034 | -10/Mines | Core integrity fell below 50% 1208 | -10/Mines | Discovered new exit (range 12) 1357 | -10/Mines | Learned location of Zion (-6) 1362 | -10/Mines | Discovered new exit (range 10) 1464 | -10/Mines | Assisted by bots powering up and referring to "LRC-V3" 1600 | -10/Mines | Found a hidden stash of uninstalled traps 1691 | -10/Mines | Learned location of 1 exit from Materials 1718 | -10/Mines | Escorted by a lone wolf Derelict 1738 | -10/Mines | Learned location of Storage (-9) 1763 | -10/Mines | Deemed a non-threat by the Exiles lab entrance 1764 | -10/Mines | Discovered new exit (range 5) 1804 | -10/Mines | Entered Exiles 1804 | -10/Exiles | Accompanied by 5 allies 1834 | -10/Exiles | Led the pair of lost Derelicts to a safe place 1839 | -10/Exiles | Met 8R-AWN 1864 | -10/Exiles | Met EX-HEX 1932 | -10/Exiles | Met EX-DEC 1997 | -10/Exiles | Met EX-BIN 2021 | -10/Exiles | Aligned with FarCom system 2022 | -10/Exiles | Given EX-Vault access code 2089 | -10/Exiles | Opened EX-Vault 2099 | -10/Exiles | Found Supersonic Drone Bay 2105 | -10/Exiles | Discovered new exit (range 56) 2111 | -10/Exiles | Discovered new exit (range 71) 2141 | -10/Exiles | Warned to stay clear of 0b10 Research branches 2290 | -10/Exiles | Left Exiles lab with Supersonic Drone Bay 2290 | -10/Exiles | Entered Mines 2290 | -9/Mines | Accompanied by 3 allies 2296 | -9/Mines | Learned 2 Materials zone layouts 2565 | -9/Mines | Core integrity fell below 20% 2568 | -9/Mines | Destroyed YI-UF0 2593 | -9/Mines | Lost 3 parts (1p2n) 2747 | -9/Mines | Discovered new exit (range 14) 2766 | -9/Mines | Entered Materials 2766 | -8/Materials | Evolved 4 slots: Propulsion x1, Utility x2, Weapon x1 2767 | -8/Materials | Identified exit to Factory 3643 | -8/Materials | Lost 3 parts (2n1u) 3691 | -8/Materials | Build established: Skirmisher 3713 | -8/Materials | Entered Factory 3713 | -7/Factory | Evolved 2 slots: Propulsion x1, Utility x1 3726 | -7/Factory | Discovered new exit (range 45) 4022 | -7/Factory | Identified exit to Lower Caves 4030 | -7/Factory | Entered Lower Caves 4196 | -7/Lower Caves | Discovered new exit (range 128) 4848 | -7/Lower Caves | Identified exit to Lower Caves 4851 | -7/Lower Caves | Entered another Lower Caves area 4870 | -7/Lower Caves | Discovered new exit (range 101) 5224 | -7/Lower Caves | Entered Data Miner 5224 | -7/Data Miner | Discovered new exit (range 6) 5255 | -7/Data Miner | Met Data Miner 5290 | -7/Data Miner | Learned location of Section 7 (-3) 5290 | -7/Data Miner | Acquired the access code to Warlord's prototype stash 5319 | -7/Data Miner | Received God Mode back door access code from Data Miner 5360 | -7/Data Miner | Entered Proximity Caves 5507 | -6/Proximity Caves | Escorted by Enhanced Grunt 5549 | -6/Proximity Caves | Found Prototype Device 5549 | -6/Proximity Caves | Identified Exp. Thermal Shield 5642 | -6/Proximity Caves | Build established: Tank 6113 | -6/Proximity Caves | Discovered new exit (range 6) 6121 | -6/Proximity Caves | Entered Factory 6121 | -6/Factory | Evolved 2 slots: Propulsion x1, Utility x1 6264 | -6/Factory | Repaired Med. Treads? 6335 | -6/Factory | Repaired Imp. Treads? 6575 | -6/Factory | Self-destructed Last Messages --------------- 06557_ G-50 Soldier destroyed. 06557_ HV Slug penetrates Wall. 06558_ Extracted 27 energy. 06559_ Critical hit (Burn: +18). 06560_ Extracted 10 energy. 06561_ HV Slug penetrates G-50 Soldier. 06561_ G-50 Soldier suffers critical hit (Destroy). 06561_ Destroyed Lgt. Angular Momentum Engine. 06561_ HV Slug penetrates Wall. 06563_ Med. Treads severed. 06563_ Hrd. Medium Armor Plating destroyed. 06565_ HV Slug penetrates Wall. 06565_ Imp. Treads destroyed. 06567_ Force Field destroyed. 06568_ HV Slug penetrates L-41 Fighter. 06569_ Exp. Thermal Shield destroyed. 06571_ HV Slug penetrates L-41 Fighter. 06571_ HV Slug penetrates Wall. 06571_ Hrd. Light Armor Plating destroyed. 06574_ Imp. Treads severed. Map ----- +----------------------------------------------------+ | # # ############ | | # ] !# ############ | | # # ######### # [ ]## | | #+#############+### ######### # ## | | # # # """ ## | | # # # """ ## | | # # # " " """ ## | | # + + "R" ## | | # # # """ ## | | #######+######+#### # # # ## | | ????## =%! # ######### ############ | | ???### ! # | | ????## [[[ + | | ??#??# [[[ # | | ?#???# [[ # | | ???#?# # | | ??#??# # ###########+############## | | ?????# # ####### ## | | ?????# # # # """"" ## "" | | ?????# ] # # # ""R"" ## "" | | ???### / # # "" " " ## "" | | #????# # # # "" ## "" | | ??##?############## # # """ ## | | ????#?###?###??#### # # """ [* ## "" | | ????#? ?? ? ?????# g #= # """ ** ## "" | | ????? ""??""? """ # [l@= # ** ## "" | | ???##???"?"???"???+ g=gl[] # ## "" | | ????? ??? ?"? ""? # =%! # ## | | ??????? ?? ? ?# # # * ## ! | | ??????? ? ? ? ??+ # #################### | | ???????#?####?????###+###########??###?#?#?##?#?## | | ??????????????? ? ? ? ? #####?#?#?###?#####? | | ???????????#?#?""?? "?"??"""" ???####?###?###?#?## | | ??????????#???????"?"???????????#####?#?####?###?? | | ????????????##?"??????"???????#?#?#?##??###?###### | | ???????????????????????????""???##??##???#?##????# | | ??????????????????????????? ??#?###??##?#?#???### | | ??????????????????????????????#??#??#?##??#?##???? | | ??????????????????????????????#??#?????##????????? | | ?????????????????????????????????????##?????????#? | | ?????????????????????????????#???????#???#???????? | | | | | | | | | | | | | | | | | | | +----------------------------------------------------+ Best States ------------- Heat Dissipation 56 Energy Generation 18 Energy Capacity 660 Matter Stores 450 Matter Capacity 450 Sight Range 16 Robot Scan Range 15 Terrain Scan Range 16 Terrain Scan Density 210 Armor Coverage 600 Resistance: TH 30 Weapon Shielding 33 Evasion (%) 50 Recoil Reduction 5 Item Schematics ----------------- Huge Storage Unit | -10/Materials | Hacked Combat Drone Bay | -7/Data Miner | Free Lgt. Regenerative Plating | -7/Data Miner | Free Cld. Cesium-ion Thruster | -7/Data Miner | Free Thermal Defense Suite | -7/Data Miner | Free Com. Ion Cannon | -7/Data Miner | Free Antigrav System | -7/Data Miner | Free Adv. Cooling System | -7/Data Miner | Free Mass Driver | -7/Data Miner | Free Hvy. Reflective Plating | -7/Data Miner | Free Adv. Trap Scanner | -7/Data Miner | Free Robot Schematics ------------------ A-15 Conveyor | -7/Data Miner | Free G-47 Trooper | -7/Data Miner | Free C-17 Slicer | -7/Data Miner | Free L-41 Fighter | -7/Data Miner | Free S-27 Virus | -7/Data Miner | Free Fabricated ------------ Nothing Alien Tech Used ----------------- None Achievements -------------- None Challenges ------------ None Game ------ Seed ReactionAlertInjector Manual? 0 Play Time 01:33:25 Cumulative 1240.0 hours Start 2022.03.20 @ 08:26:29 End 2022.03.20 @ 15:22:20 Sessions 5 Manual Loads 0 Difficulty Rogue Special Mode None Game No. 348 Rogue 348 Adventurer 0 Explorer 0 Win Type - Total 41 Types 25/6/7/3/0/0/0/0/0 Lore% 80 Gallery% 82 Achievement% 73 Wizard Run 0 Options --------- ASCII 0 Keyboard 1 Movement Numpad Keybinds 0 Fullscreen 1 Font 24/Crisp Map View 76x50 Tactical HUD 1 Map Filters NONE Filters NONE Steam 1 RUN: 1c4b265b-c491-4c71-8dbd-22a32d553045